bitfinex-derivatives/quotes_BTCF0:USTF0_20241203
["timestamp","ask_amount","ask_price","bid_price","bid_amount"]
[1733236218564,0.3608,94262.0,94261.0,8.6e-07]
[1733236218770,0.053054,94234.0,94233.0,0.3608]
[1733236218971,0.053059,94224.0,94223.0,0.3608]
[1733236219174,0.413894,94234.0,94233.0,0.1775882]
[1733236219367,0.413894,94234.0,94212.0,0.3608]
[1733236219368,0.413854,94234.0,94212.0,0.3608]
[1733236219674,0.413854,94234.0,94200.0,0.00838786]
[1733236219675,0.053062,94220.0,94204.0,0.00012483]
[1733236220071,0.053062,94220.0,94219.0,0.11685026]
[1733236220072,0.063862,94220.0,94219.0,0.11685026]
[1733236220569,0.063862,94220.0,94219.0,0.1162582]
[1733236221471,0.09333091,94220.0,94219.0,0.1162582]
[1733236222877,0.02946891,94220.0,94219.0,0.1162582]
[1733236223066,0.1946431,94230.0,94204.0,0.00012483]
[1733236223067,0.053061,94221.0,94204.0,0.00012483]
[1733236223270,0.413865,94214.0,94204.0,0.00012483]
[1733236223468,0.413905,94214.0,94204.0,0.00012483]
[1733236223672,0.053105,94214.0,94213.0,42.37213244]
[1733236224169,0.413905,94214.0,94213.0,42.34676021]
[1733236224371,0.413905,94214.0,94213.0,42.34876021]
[1733236225377,0.44451848,94214.0,94213.0,42.34876021]
[1733236225974,0.44651848,94214.0,94213.0,42.34676021]
[1733236226579,0.44651848,94214.0,94213.0,42.37213244]
[1733236226874,0.44651848,94214.0,94213.0,42.37313244]
[1733236227079,0.44651848,94214.0,94213.0,42.34776021]
[1733236227282,0.44651848,94214.0,94213.0,41.9968942]
[1733236227283,0.71262694,94214.0,94213.0,41.9968942]
[1733236227469,0.73387313,94214.0,94213.0,41.39459398]
[1733236227777,0.92095313,94214.0,94213.0,40.2269987]
[1733236227976,1.02273186,94214.0,94213.0,39.8376987]
[1733236228177,1.04223973,94214.0,94213.0,39.75491733]
[1733236228377,1.04223973,94214.0,94213.0,39.72691733]
[1733236228769,1.14154843,94214.0,94213.0,39.68873891]
[1733236228975,1.25446843,94214.0,94213.0,39.68873891]
[1733236229175,1.43954843,94214.0,94213.0,39.61535719]
[1733236229377,1.44154843,94214.0,94213.0,39.61635719]
[1733236229680,1.44154843,94214.0,94213.0,39.51100075]
[1733236229979,1.44154843,94214.0,94213.0,38.76879508]
[1733236229980,1.43954843,94214.0,94213.0,38.76879508]
[1733236230173,1.43954843,94214.0,94213.0,37.71078491]
[1733236230174,1.91578106,94214.0,94213.0,37.71078491]
[1733236230482,2.09575557,94214.0,94213.0,36.79015394]
[1733236230780,2.09575557,94214.0,94213.0,36.0697992]
[1733236230781,2.57423333,94214.0,94213.0,36.0697992]
[1733236231078,2.2299412,94214.0,94213.0,35.99197376]
[1733236231267,1.99645041,94214.0,94213.0,35.99197376]
[1733236231470,2.11060126,94214.0,94213.0,35.99197376]
[1733236231675,2.45454854,94214.0,94213.0,34.79197376]
[1733236231882,2.45446508,94214.0,94213.0,34.26081887]
[1733236232082,2.45446508,94214.0,94213.0,34.21981887]
[1733236232375,2.2338776,94214.0,94213.0,34.21981887]
[1733236232582,1.89001424,94214.0,94213.0,34.03063016]
[1733236232876,1.89001424,94214.0,94213.0,30.31485696]
[1733236232877,1.98878909,94214.0,94213.0,30.31485696]
[1733236233077,1.98878909,94214.0,94213.0,30.13305843]
[1733236233286,1.98878909,94214.0,94213.0,29.94895611]
[1733236233791,1.80594909,94214.0,94213.0,29.78825673]
[1733236233994,1.98357262,94214.0,94213.0,29.78825673]
[1733236234282,1.88577424,94214.0,94213.0,29.25679607]
[1733236234477,1.89108034,94214.0,94213.0,29.25679607]
[1733236234679,1.99221001,94214.0,94213.0,24.76075522]
[1733236234881,1.99744199,94214.0,94213.0,21.34814365]
[1733236235077,1.84830234,94214.0,94213.0,15.65111365]
[1733236235278,1.96258592,94214.0,94213.0,14.30201425]
[1733236235479,1.96260292,94214.0,94213.0,13.71307593]
[1733236235672,1.95360292,94214.0,94213.0,13.60463053]
[1733236235872,1.96260292,94214.0,94213.0,12.89549553]
[1733236236076,1.96260292,94214.0,94213.0,10.91667487]
[1733236236274,1.96260292,94214.0,94213.0,9.72588221]
[1733236236480,1.96260292,94214.0,94213.0,9.46992821]
[1733236236684,1.84297459,94214.0,94213.0,5.07180564]
[1733236236980,0.063091,94169.0,94160.0,0.3608]
[1733236237172,0.0531,94153.0,94152.0,0.2614]
[1733236237371,0.0531,94153.0,94134.0,0.3608]
[1733236237372,0.05318731,94153.0,94134.0,0.3608]
[1733236237576,0.053106,94142.0,94135.0,0.0108]
[1733236237781,0.1946431,94144.0,94134.0,0.3608]
[1733236237980,8.731e-05,94153.0,94143.0,0.3608]
[1733236238285,0.15850474,94152.0,94144.0,0.66225223]
[1733236238484,0.26473063,94152.0,94144.0,0.66225223]
[1733236238888,0.26473063,94152.0,94151.0,0.3608]
[1733236239475,0.26473063,94152.0,94151.0,0.54372]
[1733236239681,0.28598905,94152.0,94151.0,0.54372]
[1733236239987,0.10622589,94152.0,94151.0,1.20597223]
[1733236240287,0.05306,94161.0,94151.0,1.20597223]
[1733236240288,0.02125842,94179.0,94151.0,1.20597223]
[1733236240476,0.02125842,94179.0,94178.0,0.3608]
[1733236240683,0.02125842,94195.0,94178.0,1.02309223]
[1733236240684,0.1583063,94183.0,94178.0,1.02309223]
[1733236240880,0.02125842,94195.0,94186.0,0.66225223]
[1733236241187,0.0966,94211.0,94200.0,0.053073]
[1733236241188,0.03065521,94211.0,94200.0,0.053073]
[1733236241389,0.3608,94231.0,94210.0,0.3608]
[1733236241390,0.05306,94220.0,94210.0,0.3608]
[1733236241581,0.36228,94231.0,94210.0,0.36084]
[1733236241582,0.053067,94211.0,94210.0,0.36084]
[1733236241774,0.053067,94211.0,94210.0,0.3608]
[1733236241986,0.15870202,94211.0,94210.0,0.3608]
[1733236242387,0.15935586,94212.0,94211.0,0.18292]
[1733236242577,0.15935586,94212.0,94207.0,0.3608]
[1733236242578,0.15935586,94212.0,94194.0,0.3608]
[1733236242778,0.053081,94188.0,94187.0,0.18292]
[1733236242984,4e-05,94195.0,94188.0,0.66225223]
[1733236243289,4e-05,94195.0,94194.0,0.36084]
[1733236243290,0.053116,94195.0,94194.0,0.36084]
[1733236243483,0.0532522,94195.0,94194.0,4e-05]
[1733236243681,0.053078,94193.0,94171.0,0.18292]
[1733236243876,0.053089,94172.0,94171.0,0.18292]
[1733236244076,0.053129,94172.0,94171.0,0.18292]
[1733236244283,0.31957121,94172.0,94171.0,0.18292]
[1733236244789,0.053092,94168.0,94167.0,0.3608]
[1733236244980,0.05306,94186.0,94180.0,0.4464]
[1733236245184,0.0041762,94195.0,94185.0,1.38385223]
[1733236245378,0.0041762,94195.0,94194.0,1.02305223]
[1733236245578,0.053068,94210.0,94209.0,0.18292]
[1733236245879,0.053068,94210.0,94209.0,4e-05]
[1733236245880,0.34824019,94210.0,94209.0,4e-05]
[1733236246286,0.16014448,94210.0,94209.0,0.36084]
[1733236246478,0.26642097,94210.0,94209.0,1.02309223]
[1733236246679,0.25078379,94210.0,94209.0,0.36084]
[1733236246881,0.4189381,94210.0,94209.0,0.36084]
[1733236247084,0.4189381,94210.0,94209.0,4e-05]
[1733236247687,0.4189381,94210.0,94188.0,0.3608]
[1733236247688,0.053074,94200.0,94188.0,0.3608]
[1733236247893,0.05308,94189.0,94188.0,0.3608]
[1733236248082,0.05308,94189.0,94168.0,0.18292]
[1733236248083,0.053085,94180.0,94168.0,0.18292]
[1733236248386,0.63768286,94179.0,94168.0,0.18292]
[1733236248591,0.63768286,94179.0,94178.0,4.15867189]
[1733236248592,0.69074286,94179.0,94178.0,4.15867189]
[1733236248890,0.79695293,94179.0,94178.0,4.10548889]
[1733236250285,0.79695293,94179.0,94178.0,4.04821189]
[1733236250495,0.79695293,94179.0,94178.0,3.34611166]
[1733236250680,0.79706941,94179.0,94178.0,3.01575949]
[1733236250881,0.79706941,94179.0,94178.0,2.87882993]
[1733236251095,0.79706941,94179.0,94178.0,2.5234726]
[1733236251288,0.79706941,94179.0,94178.0,2.2914146]
[1733236251496,0.80606941,94179.0,94178.0,1.9396509]
[1733236251682,1.18622369,94179.0,94178.0,1.8986109]
[1733236252189,1.19022369,94179.0,94178.0,1.47303713]
[1733236252394,1.19022369,94179.0,94178.0,0.19470064]
[1733236252591,0.01,94158.0,94143.0,4e-05]
[1733236252888,0.413945,94144.0,94143.0,4e-05]
[1733236253292,0.69449756,94144.0,94143.0,4e-05]
[1733236253789,0.80071838,94144.0,94143.0,4e-05]
[1733236254092,0.80071838,94144.0,94098.0,0.0053]
[1733236254093,0.053112,94132.0,94131.0,3e-07]
[1733236254298,0.413912,94132.0,94131.0,3e-07]
[1733236254502,0.68545354,94132.0,94131.0,3e-07]
[1733236254690,0.79167436,94132.0,94131.0,3e-07]
[1733236255193,0.7917889,94132.0,94131.0,3e-07]
[1733236255783,0.7917889,94132.0,94131.0,0.0010003]
[1733236255784,0.7987889,94132.0,94131.0,0.0010003]
[1733236255989,0.82888567,94132.0,94131.0,0.0010003]
[1733236258404,0.67688567,94132.0,94131.0,0.0010003]
[1733236258589,0.17220297,94132.0,94131.0,0.0010003]
[1733236258790,0.05864969,94132.0,94131.0,0.0010003]
[1733236258996,0.05864969,94132.0,94131.0,0.66325253]
[1733236259293,0.32502217,94132.0,94131.0,0.66325253]
[1733236259799,7.971e-05,94132.0,94131.0,0.66325253]
[1733236260192,0.34826148,94132.0,94131.0,0.0010003]
[1733236260393,0.31905334,94132.0,94131.0,0.1875603]
[1733236261699,0.31905334,94132.0,94131.0,0.0010003]
[1733236261900,0.4419176,94132.0,94131.0,3e-07]
[1733236262091,0.47222694,94132.0,94131.0,3e-07]
[1733236262902,0.47222694,94132.0,94103.0,0.18656]
[1733236262903,0.053128,94104.0,94103.0,0.18656]
[1733236263088,0.05322833,94104.0,94103.0,0.18656]
[1733236263292,0.053129,94102.0,94101.0,0.0925]
[1733236263498,0.37861587,94104.0,94100.0,0.4608]
[1733236263703,0.33542071,94102.0,94100.0,0.4608]
[1733236263891,0.33542071,94102.0,94098.0,0.1866]
[1733236263892,0.053136,94090.0,94089.0,0.3608]
[1733236264289,0.33546771,94090.0,94089.0,0.3608]
[1733236264703,0.44174949,94090.0,94089.0,0.3608]
[1733236264901,0.44174949,94090.0,94083.0,0.1866]
[1733236265101,0.053139,94084.0,94083.0,0.1866]
[1733236265300,0.053139,94084.0,94077.0,0.5474]
[1733236265301,0.053143,94078.0,94077.0,0.5474]
[1733236265500,0.053143,94078.0,94077.0,0.1866]
[1733236265703,0.053143,94078.0,94069.0,0.36092073]
[1733236265704,0.053147,94070.0,94069.0,0.00012073]
[1733236266002,0.17227659,94070.0,94069.0,7.3e-07]
[1733236266305,0.053157,94052.0,94051.0,0.18664]
[1733236266613,0.053157,94052.0,94044.0,0.18664]
[1733236266614,0.053161,94046.0,94044.0,0.18664]
[1733236266796,0.053161,94046.0,94040.0,0.4466]
[1733236266990,0.21283024,94046.0,94045.0,1.66225223]
[1733236267504,0.31924816,94046.0,94045.0,1.84889223]
[1733236267805,0.31924816,94046.0,94045.0,1.66225223]
[1733236268005,0.31924816,94046.0,94045.0,1.84889223]
[1733236268306,0.34855326,94046.0,94045.0,1.84889223]
[1733236268598,0.4711158,94046.0,94045.0,1.18664]
[1733236268799,0.4711158,94046.0,94045.0,1.0]
[1733236270299,0.4711158,94046.0,94045.0,0.946467]
[1733236271695,0.4721158,94046.0,94045.0,0.946467]
[1733236272491,0.4721158,94046.0,94045.0,0.889504]
[1733236273003,0.4721158,94046.0,94045.0,0.822173]
[1733236273312,0.4721158,94046.0,94045.0,0.712981]
[1733236273805,0.4721158,94046.0,94045.0,0.03664818]
[1733236273995,0.4721158,94046.0,94045.0,1.8e-07]
[1733236275500,0.053166,94035.0,94034.0,0.19091418]
[1733236275706,0.053173,94023.0,94022.0,0.18672]
[1733236275895,0.053173,94023.0,94021.0,0.63352]
[1733236276098,0.053173,94023.0,94012.0,0.3608]
[1733236276099,0.053174,94021.0,94012.0,0.3608]
[1733236276292,0.053179,94013.0,94012.0,0.29523]
[1733236276491,0.053219,94013.0,94008.0,0.18672]
[1733236276692,0.053219,94013.0,94000.0,0.1]
[1733236276693,0.05318,94009.0,94000.0,0.1]
[1733236276898,0.053185,94001.0,94000.0,0.1]
[1733236277093,0.05330267,94001.0,94000.0,0.1]
[1733236277301,0.31890818,94001.0,94000.0,0.66128523]
[1733236278397,0.46615388,94001.0,94000.0,0.046419]
[1733236279107,0.46715388,94001.0,94000.0,0.046419]
[1733236279709,0.46915388,94001.0,94000.0,0.046419]
[1733236280395,0.053189,93995.0,93994.0,0.3608]
[1733236280597,0.053189,93995.0,93994.0,0.56128523]
[1733236280913,0.053189,93995.0,93988.0,0.18676]
[1733236280914,0.33279458,93995.0,93988.0,0.18676]
[1733236281100,0.33279458,93995.0,93977.0,0.80784]
[1733236281101,0.053198,93978.0,93977.0,0.80784]
[1733236281405,0.053198,93978.0,93977.0,1.37018613]
[1733236281599,0.21085305,93978.0,93977.0,1.37018613]
[1733236281899,0.31724564,93978.0,93977.0,1.37018613]
[1733236282210,0.31728564,93978.0,93977.0,1.37018613]
[1733236282408,0.31728564,93978.0,93977.0,1.55698613]
[1733236283409,0.31728564,93978.0,93977.0,1.37018613]
[1733236283597,0.31728564,93978.0,93977.0,1.55698613]
[1733236284111,0.02941896,93978.0,93977.0,0.9957009]
[1733236284315,0.00156001,93988.0,93977.0,1.88155403]
[1733236284316,0.00104001,93988.0,93977.0,1.88155403]
[1733236284501,0.053193,93987.0,93986.0,0.3608]
[1733236284813,0.31863933,93987.0,93986.0,0.3608]
[1733236285112,0.053193,93987.0,93986.0,0.88581313]
[1733236285309,0.31874333,93987.0,93986.0,1.07265313]
[1733236285503,0.31874333,93987.0,93986.0,1.07371403]
[1733236286007,0.34814574,93987.0,93986.0,1.07371403]
[1733236286509,0.14915274,93987.0,93986.0,1.07371403]
[1733236286904,0.053171,94026.0,93986.0,0.5487009]
[1733236287102,0.053172,94025.0,94007.0,0.3608]
[1733236287302,0.053181,94008.0,94007.0,0.74915371]
[1733236287502,0.07447863,94008.0,94007.0,0.3608]
[1733236287703,0.15858314,94008.0,94007.0,0.75021461]
[1733236287904,0.053159,94047.0,94008.0,0.18056]
[1733236288217,0.21175214,94029.0,94028.0,0.3608]
[1733236288507,0.053169,94029.0,94028.0,0.3608]
[1733236288720,0.053169,94029.0,94028.0,0.38016949]
[1733236288721,0.03036731,94029.0,94028.0,0.38016949]
[1733236288902,0.3608,94066.0,94028.0,0.3618609]
[1733236288903,0.02129763,94043.0,94028.0,0.3618609]
[1733236289106,0.053161,94043.0,94042.0,0.3608]
[1733236289617,0.2117974,94043.0,94042.0,0.3608]
[1733236289803,0.31814021,94043.0,94042.0,0.3618609]
[1733236290004,0.31826396,94043.0,94042.0,0.3618609]
[1733236290312,0.34813383,94043.0,94042.0,0.5423809]
[1733236290508,0.34813383,94043.0,94042.0,0.3618609]
[1733236290810,0.34813383,94043.0,94042.0,0.5423809]
[1733236291508,0.30197283,94043.0,94042.0,0.5423809]
[1733236291711,0.14333643,94043.0,94042.0,0.5423809]
[1733236291915,0.14833643,94043.0,94042.0,0.5433809]
[1733236292104,0.30053279,94043.0,94042.0,0.5433809]
[1733236292306,0.30353279,94043.0,94042.0,0.5423809]
[1733236292606,0.30853279,94043.0,94042.0,0.5433809]
[1733236293002,0.20218998,94043.0,94042.0,0.5433809]
[1733236294107,0.04299362,94043.0,94042.0,0.3628609]
[1733236294411,0.30855539,94043.0,94042.0,0.3628609]
[1733236294611,0.30855539,94043.0,94042.0,9e-07]
[1733236294819,0.30855539,94043.0,94042.0,0.1805209]
[1733236295017,0.30855539,94043.0,94021.0,0.44712]
[1733236295018,0.053169,94029.0,94021.0,0.44712]
[1733236295314,4e-05,94022.0,94021.0,0.44712]
[1733236295504,0.053213,94022.0,94021.0,0.44712]
[1733236295705,0.21377538,94022.0,94021.0,0.44712]
[1733236296213,0.32013007,94022.0,94021.0,0.44712]
[1733236296409,0.32013007,94022.0,94021.0,0.62764]
[1733236296803,0.80286563,94022.0,94021.0,0.568241]
[1733236297014,0.80286563,94022.0,94003.0,0.3608]
[1733236297015,0.053183,94004.0,94003.0,0.3608]
[1733236297411,0.053223,94004.0,94003.0,0.3608]
[1733236297614,0.053223,94004.0,94003.0,0.54132]
[1733236297615,0.15960201,94004.0,94003.0,0.54132]
[1733236298005,0.053195,93985.0,93984.0,0.3608]
[1733236298206,0.053195,93985.0,93966.0,0.2528973]
[1733236298207,0.00013615,93985.0,93980.0,0.3608]
[1733236298420,0.053197,93981.0,93980.0,0.3608]
[1733236298716,0.21277466,93981.0,93980.0,0.3608]
[1733236299110,0.31917518,93981.0,93980.0,0.3608]
[1733236299616,0.00704,93981.0,93980.0,0.3618]
[1733236300117,0.00704,93981.0,93980.0,0.54232]
[1733236300316,0.00704,93981.0,93980.0,0.3618]
[1733236300624,0.03639289,93981.0,93980.0,0.54232]
[1733236300806,0.00704,93981.0,93980.0,0.54332]
[1733236301423,0.03715974,93981.0,93980.0,0.54332]
[1733236302106,0.053178,94017.0,93980.0,0.54332]
[1733236302314,0.053181,94011.0,94010.0,0.3608]
[1733236302717,0.26511177,94011.0,93990.0,0.3608]
[1733236302922,0.26511177,94011.0,93980.0,0.18252]
[1733236302923,0.053184,94005.0,94004.0,0.18052]
[1733236303108,0.05326669,94005.0,94004.0,0.18052]
[1733236303308,0.21197341,94005.0,93991.0,0.18052]
[1733236303510,0.3608,94002.0,93999.0,0.18052]
[1733236303714,0.053186,94001.0,93999.0,0.18052]
[1733236303919,0.053191,93993.0,93992.0,0.18052]
[1733236304316,0.2137148,93993.0,93992.0,0.18052]
[1733236304519,0.053192,93992.0,93985.0,0.3608]
[1733236304723,4e-05,93993.0,93985.0,0.3608]
[1733236304921,0.10643146,93993.0,93992.0,0.3608]
[1733236305220,8.269e-05,94005.0,94000.0,0.4472]
[1733236305421,0.053163,94042.0,94004.0,0.3608]
[1733236305422,0.053174,94023.0,94004.0,0.3608]
[1733236305623,0.053174,94023.0,94022.0,0.3608]
[1733236305817,0.02128997,94043.0,94022.0,0.3608]
[1733236305818,0.15997857,94026.0,94022.0,0.3608]
[1733236306020,0.15997857,94023.0,94022.0,0.3608]
[1733236306223,0.26637003,94040.0,94025.0,0.00016]
[1733236306522,0.02980525,94030.0,94025.0,0.00016]
[1733236306723,0.02980525,94030.0,94029.0,0.3608]
[1733236306923,0.10646253,94039.0,94029.0,0.3608]
[1733236307122,0.00010501,94039.0,94038.0,0.3608]
[1733236307624,0.00010501,94039.0,94038.0,0.54136]
[1733236308015,0.00010501,94039.0,94038.0,0.90216]
[1733236308215,0.00010501,94039.0,94038.0,0.7216]
[1733236308419,0.00010501,94039.0,94038.0,0.90212]
[1733236308420,0.10644952,94039.0,94038.0,0.90212]
[1733236308621,0.10644952,94039.0,94038.0,0.7216]
[1733236308812,0.10644952,94039.0,94038.0,0.7226]
[1733236309017,0.26615976,94039.0,94038.0,0.90312]
[1733236309323,0.00010501,94039.0,94038.0,0.7226]
[1733236309524,0.00010501,94039.0,94038.0,0.90312]
[1733236309727,0.10644443,94039.0,94038.0,0.90312]
[1733236310118,0.26590352,94039.0,94038.0,0.90312]
[1733236310320,0.26790352,94039.0,94038.0,0.18152]
[1733236310518,0.053166,94036.0,94035.0,0.44716]
[1733236310814,0.053166,94036.0,94021.0,0.3608]
[1733236310815,0.053174,94022.0,94021.0,0.3608]
[1733236311021,0.053174,94022.0,94016.0,0.44716]
[1733236311022,0.05317,94029.0,94027.0,0.18052]
[1733236311424,0.05317,94029.0,94028.0,0.00016]
[1733236311633,0.08279031,94029.0,94028.0,0.00016]
[1733236311824,0.24159667,94029.0,94028.0,0.00016]
[1733236312125,0.053174,94022.0,94021.0,0.001]
[1733236312321,0.053183,94005.0,94004.0,0.00016]
[1733236312723,0.31892897,94005.0,94004.0,0.00016]
[1733236313615,0.31892897,94005.0,94004.0,1e-06]
[1733236314421,0.32092897,94005.0,94004.0,0.001001]
[1733236314830,0.32092897,94005.0,94004.0,0.003001]
[1733236314831,0.35017491,94005.0,94004.0,0.003001]
[1733236317326,0.053197,93982.0,93981.0,0.17948]
[1733236317631,0.05346235,93982.0,93981.0,0.17948]
[1733236318130,0.31922887,93982.0,93981.0,0.17948]
[1733236318522,0.32122887,93982.0,93981.0,0.001]
[1733236319020,0.32122887,93982.0,93981.0,0.18048]
[1733236319628,0.32122887,93982.0,93981.0,0.18148]
[1733236320022,0.32122887,93982.0,93981.0,0.002]
[1733236320219,0.32122887,93982.0,93981.0,0.18148]
[1733236320431,0.26803187,93982.0,93981.0,0.18148]
[1733236320626,0.03228511,93982.0,93981.0,0.18148]
[1733236320826,0.19135718,93982.0,93981.0,0.002]
[1733236321133,0.19135718,93982.0,93981.0,0.18148]
[1733236321925,0.29776109,93982.0,93981.0,0.18148]
[1733236322921,0.65856109,93982.0,93981.0,0.002]
[1733236323132,0.65856109,93982.0,93981.0,0.18152]
[1733236323133,0.19135718,93982.0,93981.0,0.18152]
[1733236323432,0.03228511,93982.0,93981.0,0.18152]
[1733236324131,0.00112001,94000.0,93981.0,0.18152]
[1733236324332,0.55661376,94010.0,93991.0,0.3608]
[1733236324532,0.1595952,93992.0,93991.0,0.3608]
[1733236324834,0.1595952,94004.0,93991.0,0.3608]
[1733236324835,0.053188,93993.0,93991.0,0.3608]
[1733236325040,0.1595952,93992.0,93991.0,0.3608]
[1733236325241,0.15970857,93992.0,93991.0,0.3608]
[1733236325541,4e-05,94005.0,93991.0,0.3608]
[1733236325723,0.00904,94005.0,94004.0,0.3608]
[1733236326235,0.053177,94013.0,94004.0,0.3608]
[1733236326532,0.053177,94013.0,94012.0,0.3608]
[1733236326736,9.631e-05,94013.0,94012.0,0.36084]
[1733236327538,0.02948886,94021.0,94012.0,0.36084]
[1733236327734,0.053162,94039.0,94020.0,0.413972]
[1733236327937,0.053162,94039.0,94038.0,0.3608]
[1733236328129,0.053162,94039.0,94038.0,0.36084]
[1733236328534,0.28214336,94049.0,94038.0,0.36084]
[1733236328729,0.19581376,94080.0,94038.0,0.36084]
[1733236328730,0.053148,94065.0,94048.0,0.3608]
[1733236328930,0.18474254,94081.0,94063.0,0.3608]
[1733236328931,0.31072542,94078.0,94063.0,0.3608]
[1733236329235,0.00013274,94077.0,94071.0,0.3608]
[1733236329431,0.053142,94075.0,94071.0,0.3608]
[1733236329966,0.00013274,94077.0,94071.0,0.3608]
[1733236330239,0.053144,94072.0,94071.0,0.3608]
[1733236330732,0.053144,94072.0,94071.0,0.3618]
[1733236330934,0.21250444,94072.0,94071.0,0.3618]
[1733236331235,0.31880373,94072.0,94071.0,0.3618]
[1733236332124,0.31880373,94072.0,94071.0,0.001]
[1733236332336,0.26565973,94072.0,94053.0,0.3608]
[1733236332634,4e-05,94054.0,94053.0,0.3608]
[1733236333633,0.00013274,94077.0,94053.0,0.98732]
[1733236333833,0.00013274,94077.0,94074.0,0.3608]
[1733236334039,0.053144,94076.0,94074.0,0.3608]
[1733236334232,0.10632246,94076.0,94074.0,0.3608]
[1733236334435,0.10632246,94076.0,94075.0,0.17944]
[1733236334636,0.10632246,94076.0,94053.0,1.10944]
[1733236334637,0.13652492,94076.0,94063.0,0.3608]
[1733236334933,4e-05,94064.0,94063.0,0.3608]
[1733236335436,4e-05,94064.0,94053.0,0.80844]
[1733236335437,0.053156,94054.0,94053.0,0.44764]
[1733236335643,0.053156,94054.0,94053.0,0.44708]
[1733236335933,0.053156,94054.0,94024.0,0.0027]
[1733236335934,0.053166,94037.0,94036.0,0.447]
[1733236336134,0.41406621,94037.0,94036.0,0.447]
[1733236336340,0.57371191,94037.0,94035.0,0.1794]
[1733236336532,0.1096,94036.0,94035.0,0.1794]
[1733236336728,0.10964,94036.0,94035.0,0.1794]
[1733236336935,0.053167,94035.0,94017.0,0.3608]
[1733236337234,0.15997554,94034.0,94029.0,0.1794]
[1733236337445,0.05317,94030.0,94029.0,0.1794]
[1733236337829,0.5739861,94030.0,94029.0,0.1794]
[1733236338037,0.5739861,94030.0,94016.0,0.447]
[1733236338038,0.053175,94021.0,94020.0,0.1794]
[1733236338232,0.053177,94018.0,94016.0,0.447]
[1733236338649,0.26613389,94017.0,94016.0,0.447]
[1733236339330,4e-05,94017.0,94016.0,0.447]
[1733236339531,0.029991,94017.0,94016.0,0.447]
[1733236339741,0.006,94030.0,94017.0,0.17944]
[1733236339932,0.006,94030.0,94029.0,0.3608]
[1733236340330,0.1056,94058.0,94029.0,0.3608]
[1733236340743,0.1056,94058.0,94029.0,0.36091999]
[1733236340936,0.02928642,94042.0,94030.0,0.17944]
[1733236341241,0.053153,94061.0,94030.0,0.232609]
[1733236341440,0.053153,94061.0,94048.0,0.3608]
[1733236341628,0.053153,94061.0,94051.0,0.00011999]
[1733236341936,0.053153,94061.0,94060.0,0.00011999]
[1733236342138,0.00010407,94061.0,94060.0,0.00011999]
[1733236342343,0.10644914,94061.0,94060.0,0.00011999]
[1733236343028,0.00910407,94061.0,94060.0,0.00011999]
[1733236343629,0.01210407,94061.0,94060.0,0.00011999]
[1733236344032,0.01210407,94061.0,94060.0,0.41407299]
[1733236344337,0.01210407,94061.0,94060.0,0.36091999]
[1733236344832,0.00310407,94061.0,94060.0,0.36091999]
[1733236345029,0.01010407,94061.0,94060.0,0.36191999]
[1733236345432,0.01010407,94061.0,94060.0,0.36091999]
[1733236345741,0.01010407,94061.0,94060.0,0.36191999]
[1733236345944,0.05306,94078.0,94060.0,0.36191999]
[1733236346146,0.05306,94078.0,94077.0,0.7216]
[1733236346442,0.05306,94078.0,94077.0,0.72171999]
[1733236346830,0.05314537,94078.0,94077.0,0.72171999]
[1733236347235,0.1,94100.0,94077.0,0.72171999]
[1733236347436,0.1,94100.0,94097.0,0.3608]
[1733236347646,0.1,94100.0,94099.0,0.00011999]
[1733236348047,0.13028599,94100.0,94099.0,0.00011999]
[1733236348245,0.13036376,94100.0,94099.0,0.00011999]
[1733236348446,0.10007777,94100.0,94099.0,0.00011999]
[1733236348744,0.10107777,94100.0,94099.0,0.00111999]
[1733236349136,0.053121,94118.0,94100.0,0.053131]
[1733236349337,0.053121,94118.0,94117.0,0.3608]
[1733236349541,0.053121,94118.0,94117.0,0.36091999]
[1733236349848,0.08270508,94118.0,94117.0,0.36091999]
[1733236350049,0.18896484,94118.0,94117.0,0.36091999]
[1733236350238,0.18907577,94118.0,94117.0,0.00011999]
[1733236350551,0.18907577,94118.0,94099.0,0.002]
[1733236350552,0.053131,94100.0,94099.0,0.002]
[1733236350742,0.053137,94089.0,94082.0,0.3608]
[1733236350945,0.053134,94096.0,94082.0,0.3608]
[1733236351136,0.10625016,94088.0,94082.0,0.3608]
[1733236351344,0.10625016,94088.0,94064.0,0.3608]
[1733236351345,0.3608,94083.0,94064.0,0.3608]
[1733236351647,0.3608,94094.0,94064.0,0.3608]
[1733236351648,0.10628686,94093.0,94078.0,0.17932]
[1733236351861,0.10628686,94093.0,94087.0,0.3608]
[1733236352148,4e-05,94100.0,94087.0,0.3608]
[1733236352149,4e-05,94100.0,94099.0,0.62716]
[1733236352345,4e-05,94100.0,94099.0,0.98796]
[1733236352651,4e-05,94100.0,94099.0,0.80868]
[1733236352951,0.00011093,94118.0,94117.0,0.17932]
[1733236353141,0.00011093,94118.0,94110.0,0.3608]
[1733236353338,0.10627049,94117.0,94110.0,0.3608]
[1733236353546,0.00011093,94118.0,94117.0,0.17932]
[1733236353740,0.10625411,94117.0,94099.0,0.8092]
[1733236353950,0.053131,94101.0,94099.0,0.80964]
[1733236354144,0.053131,94101.0,94099.0,0.80864]
[1733236354449,0.15906827,94100.0,94099.0,0.44784]
[1733236354745,0.26533819,94100.0,94099.0,0.18032]
[1733236354949,0.26533819,94100.0,94099.0,0.001]
[1733236355147,0.26533819,94100.0,94092.0,0.44676]
[1733236355148,0.053135,94093.0,94092.0,0.44676]
[1733236355350,0.413935,94093.0,94092.0,0.44676]
[1733236355542,0.36084,94093.0,94092.0,0.44676]
[1733236355854,0.46711839,94093.0,94092.0,0.62608]
[1733236356342,0.46911839,94093.0,94092.0,0.62708]
[1733236356543,0.46911839,94093.0,94092.0,0.44776]
[1733236356739,0.47311839,94093.0,94092.0,0.62708]
[1733236357341,0.52625339,94093.0,94092.0,0.44776]
[1733236357552,0.05314,94085.0,94063.0,0.0027]
[1733236357854,0.63165386,94093.0,94060.0,0.00011999]
[1733236357855,0.053153,94062.0,94060.0,0.00011999]
[1733236358148,4e-05,94061.0,94060.0,0.00011999]
[1733236358350,0.15884068,94061.0,94060.0,0.00011999]
[1733236358554,4e-05,94061.0,94060.0,0.00011999]
[1733236358741,0.26494015,94061.0,94060.0,0.00011999]
[1733236359139,0.10635455,94061.0,94060.0,0.17943999]